Cogmind - Beta 15 @@@ ROGUE MODE // 2025.08.31 @ 12:05:50 Player: shapeshifter Result: Destroyed by CM-64X(R) with Subdweller Laser Performance ------------- Evolutions (0) 0 Regions Visited (2) 400 Robots Destroyed (10) 50 Value Destroyed (210) 210 Prototype IDs (0) 0 Alien Tech Used (0) 0 Bonus (0) 0 TOTAL SCORE: 660 Bonus ------- None Cogmind --------- Core Integrity 0/250 Matter 189/300 Energy 93/200 System Corruption 0% Temperature Cool (6) Movement Rolling (135) Ox3 Location -10/Subcaves Parts ------- > --- POWER (1) -------- Subdweller Power Source > --- PROPULSION (2) --- Light Treads Armored Wheel > --- UTILITY (2) ------ Large Storage Unit Subdweller Optics > --- WEAPON (2) ------- Subdweller Beam Cannon Barrage Gun > --- INVENTORY (15) --- Subdweller Power Source Armored Wheel Armored Wheel Subdweller Monowheel Makeshift Flight Unit Flightbrick Beam Rifle Subdweller Laser Subdweller Laser Subdweller Shrapnel Launcher Peak State ------------ > --- POWER ------------ Subdweller Power Source > --- PROPULSION ------- Light Treads Light Treads > --- UTILITY ---------- Large Storage Unit Subdweller Optics > --- WEAPON ----------- Beam Rifle Barrage Gun > --- INVENTORY -------- Subdweller Power Source Subdweller Power Source Armored Wheel Armored Wheel Armored Wheel Subdweller Monowheel Makeshift Flight Unit Flightbrick Subdweller Laser Subdweller Laser Subdweller Beam Cannon Subdweller Shrapnel Launcher [Rating: 18] Favorites ----------- Power Ion Engine Engine Ion Engine Propulsion Light Treads Treads Light Treads Wheel Armored Wheel Utility Large Storage Unit Device Seismic Detector Storage Large Storage Unit Weapon EM Pulse Gun Energy Gun EM Pulse Gun Energy Cannon Subdweller Beam Cannon Ballistic Gun Assault Rifle Build | -11 -10 -10 ------- Run | Yrd Mat Sub Slots Evolved . | . . . Power . | . . . Propulsion . | . . . Utility . | . . . Weapon . | . . . Parts Attached 22 | 7 3 12 Power 4 | 1 . 3 Engine 4 | 1 . 3 Core . | . . . Reactor . | . . . Propulsion 6 | 2 2 2 Treads 2 | 2 . . Leg . | . . . Wheel 4 | . 2 2 Hover . | . . . Flight . | . . . Utility 4 | 2 1 1 Device 2 | 1 . 1 Storage 2 | 1 1 . Processor . | . . . Hackware . | . . . Protection . | . . . Artifact . | . . . Weapon 8 | 2 . 6 Energy Gun 5 | 1 . 4 Energy Cannon 1 | . . 1 Ballistic Gun 2 | 1 . 1 Ballistic Cannon . | . . . Launcher . | . . . Special Weapon . | . . . Impact Weapon . | . . . Slashing Weapon . | . . . Piercing Weapon . | . . . Special Melee Weapon . | . . . Unidentified Prototypes . | . . . Parts Lost 10 | . . 10 Power 3 | . . 3 Propulsion 3 | . . 3 Utility 1 | . . 1 Weapon 3 | . . 3 Highest Loss Streak 8 | . . 8 To Critical Strikes . | . . . Average Backups 10 | 3 6 12 Power 1 | . 1 1 Propulsion 5 | 1 3 6 Utility . | . . . Weapon 3 | . 1 4 Tool/Special . | . . . Unused Backups 15 | . 2 13 Power 1 | . . 1 Propulsion 9 | . 2 7 Utility . | . . . Weapon 5 | . . 5 Tool/Special . | . . . Average Slot Usage (%) 92 | . 100 89 Engine 13 | . 14 13 Treads 17 | . 21 16 Wheel 10 | . 6 11 Device 8 | . 14 6 Storage 14 | . 14 14 Energy Gun 14 | . 14 14 Ballistic Gun 12 | . 14 11 Peak Build Rating 18 | 7 11 18 Average Rating 11 | 5 8 13 On Entrance 6 | . 7 11 Naked Turns . | . . . Heaviest Build 38 | 15 30 38 Greatest Support 40 | 40 40 40 Greatest Overweight (x) 2 | . 1 2 Average Overweight (x) . | . . . Largest Inventory Capacity 15 | 8 15 15 Average Capacity 13 | 7 14 15 Most Carried 15 | 5 15 15 Average Carried 11 | 3 6 14 Final Capacity 15 | 8 15 15 Final Carried 15 | 4 15 13 Class Distribution -------------------- 100% | Mutant Dominant Class ---------------- Mutant | -10/Materials Mutant | -10/Subcaves Resources | -11 -10 -10 ----------- Run | Yrd Mat Sub Matter Collected 397 | 297 48 52 Remotely . | . . . Salvage Created 391 | 139 50 202 Parts 23 | 5 4 14 Haulers Intercepted . | . . . Recyclers Shooed . | . . . Parts Field Recycled . | . . . Retrieved Matter . | . . . Parts Self-Destructed . | . . . Prevented . | . . . Kills | -11 -10 -10 ------- Run | Yrd Mat Sub Combat Hostiles Destroyed 7 | . 3 4 Guns 7 | . 3 4 Classes Destroyed 4 | 2 1 1 Tunneler 2 | 2 . . Recycler 1 | 1 . . Swarmer 3 | . 3 . Subdweller 4 | . . 4 Best Kill Streak 3 | 2 2 3 Combat Bots Only 3 | . 2 3 Max Kills in Single Turn 1 | 1 1 1 Gunslinging . | . . . Exploded . | . . . Melee . | . . . Uniques/NPCs Destroyed . | . . . Combat | -11 -10 -10 -------- Run | Yrd Mat Sub Hostile Shots Fired 85 | . 8 77 Missed 19 | . 1 18 Hits 66 | . 7 59 Projectile 66 | . 7 59 Critical Strikes 3 | . . 3 Damage Taken 1334 | . 55 1279 Core 253 | . 10 243 Absorbed by Shields . | . . . Core Remaining (%) 100 | 100 . . Volleys Fired 50 | 9 6 35 Largest 2 | 2 2 2 Hottest 112 | 60 60 112 Shots Fired 81 | 18 12 51 Gun 74 | 18 12 44 Cannon 7 | . . 7 Launcher . | . . . Special . | . . . Kinetic 32 | 9 6 17 Thermal 26 | . . 26 Explosive . | . . . Electromagnetic 23 | 9 6 8 Robot Hit Streak 24 | 12 2 24 Robot Miss Streak 3 | 3 3 1 Penetration Max . | . . . Secondary Targets . | . . . Shots Hit Robots 55 | 13 6 36 Core Hits 15 | 4 3 8 Critical Kills . | . . . Critical Parts Destroyed . | . . . Critical Strikes 1 | . . 1 Burn 1 | . . 1 Melee Attacks . | . . . Impact . | . . . Slashing . | . . . Piercing . | . . . Sneak Attacks . | . . . Combat Hostiles . | . . . Follow-up Attacks . | . . . Damage Inflicted 801 | 162 77 562 Guns 667 | 162 77 428 Cannons 134 | . . 134 Explosions . | . . . Melee . | . . . Ramming . | . . . Kinetic 235 | 72 39 124 Thermal 382 | . . 382 Explosive . | . . . Electromagnetic 184 | 90 38 56 Impact . | . . . Slashing . | . . . Piercing . | . . . Highest Corruption . | . . . Average Corruption . | . . . Corruption Purged . | . . . Corruption Blocked . | . . . Overload Shots . | . . . Overflow Damage . | . . . Projectiles . | . . . Explosions . | . . . Melee . | . . . Knockbacks . | . . . Impact . | . . . Kinetic . | . . . Secondary . | . . . Self-Inflicted Damage . | . . . Shots . | . . . Rammed . | . . . Targets Rammed . | . . . Kicked . | . . . Crushed . | . . . Highest Temperature 91 | . . 91 Average Temperature 36 | . . 36 Received Heat Transfer 276 | . . 276 Siege Activations . | . . . Martial Activations . | . . . Shielding Activations . | . . . Robots Disrupted . | . . . Combat Hostiles . | . . . Robots Corrupted . | . . . Combat Hostiles . | . . . Parts Fried . | . . . Impact Corruptions . | . . . Robots Melted . | . . . Combat Hostiles . | . . . Parts Melted . | . . . Heat Transferred 888 | . . 888 Parts Sabotaged . | . . . Parts Stolen . | . . . Parts Stripped . | . . . Power Chain Reactions . | . . . Alert | -11 -10 -10 ------- Run | Yrd Mat Sub Maximum Alert Level . | . . . Low Security (%) 100 | 100 100 . Level 1 . | . . . Level 2 . | . . . Level 3 . | . . . Level 4 . | . . . Level 5 . | . . . High Security . | . . . Max Security . | . . . Peak Influence 70 | 5 70 . Initial . | . . . Average 13 | . 20 . Influence Increases 115 | 15 100 . Destroy 0b10 Robot/C 60 | . 60 . Destroy 0b10 Robot/NC 15 | 15 . . Destroy Leader 10 | . 10 . Lose Combat Pursuer 30 | . 30 . Influence Decreases 115 | 15 50 50 Entered New Map 25 | . . 25 Time Decay 90 | 15 50 25 Squads Dispatched 1 | . 1 . Investigation . | . . . Extermination . | . . . Reinforcement 1 | . 1 . Assault . | . . . Garrison . | . . . Intercept . | . . . Searches Triggered . | . . . Construction Impeded . | . . . Haulers Reinforced . | . . . Active Scanning Responses . | . . . Cargo Convoy Interrupts . | . . . Stealth | -11 -10 -10 --------- Run | Yrd Mat Sub Distress Signals . | . . . Communications Jammed . | . . . Distress Signals . | . . . Times Spotted 13 | . 6 7 Peak Tracking Total 4 | . 4 4 Tactical Retreats 2 | . 1 1 Traps | -11 -10 -10 ------- Run | Yrd Mat Sub Traps Triggered 1 | . . 1 Indirectly . | . . . Trap Hack Attempts . | . . . Triggered . | . . . Disarmed . | . . . Reprogrammed . | . . . Reused . | . . . Traps Extracted . | . . . Installed . | . . . Triggered . | . . . Machines | -11 -10 -10 ---------- Run | Yrd Mat Sub Machines Disabled . | . . . Max in Single Turn . | . . . Machines Repaired . | . . . Machines Dismantled . | . . . Machines Sabotaged . | . . . Overloaded Fab Kills . | . . . Hacking | -11 -10 -10 --------- Run | Yrd Mat Sub Machines Accessed . | . . . Terminals . | . . . Fabricators . | . . . Repair Stations . | . . . Recycling Units . | . . . Scanalyzers . | . . . Garrison Access . | . . . Total Hacks . | . . . Successful . | . . . Failed . | . . . Catastrophic . | . . . Database Lockouts . | . . . Manual . | . . . Terminals . | . . . Fabricators . | . . . Repair Stations . | . . . Recycling Units . | . . . Scanalyzers . | . . . Garrison Access . | . . . Terminal Hacks . | . . . Fabricator Hacks . | . . . Repair Station Hacks . | . . . Recycling Unit Hacks . | . . . Scanalyzer . | . . . Garrison Access Hacks . | . . . Unauthorized Hacks . | . . . Terminals . | . . . Fabricators . | . . . Repair Stations . | . . . Recycling Units . | . . . Scanalyzers . | . . . Garrison Access . | . . . Data Cores Recovered . | . . . Used . | . . . Hacking Detections . | . . . Full Trace Events . | . . . Feedback Events . | . . . Feedback Blocked . | . . . Robot Schematics Acquired . | . . . Robots Built . | . . . Authchips . | . . . Time . | . . . Total Robot Build Rating . | . . . Part Schematics Acquired . | . . . Parts Built . | . . . Authchips . | . . . Time . | . . . Total Part Build Rating . | . . . Parts Repaired . | . . . Time . | . . . Parts Recycled . | . . . Recycled Matter . | . . . Retrieved Matter . | . . . Retrieved Components . | . . . Parts Scanalyzed . | . . . Part Schematics Acquired . | . . . Parts Damaged . | . . . Bothacking | -11 -10 -10 ------------ Run | Yrd Mat Sub Used RIF Installer . | . . . Robots Hacked . | . . . Non-combat . | . . . Combat . | . . . Robot Hacks Applied . | . . . Relay Couplers Released . | . . . Fabnet Peak Effective % . | . . . Robots Rewired . | . . . Allies Hacked . | . . . Hacks Repelled . | . . . Allies | -11 -10 -10 -------- Run | Yrd Mat Sub Total Allies . | . . . Largest Group . | . . . Highest-Rated Group . | . . . Highest-Rated Ally . | . . . Total Orders . | . . . Ally Attacks . | . . . Total Damage . | . . . Kills . | . . . Allies Corrupted . | . . . Allies Melted . | . . . Intel | -11 -10 -10 ------- Run | Yrd Mat Sub Active Infowar (turns) 656 | 6 243 407 Optics 91 | . . 91 Seismic 565 | 6 243 316 Robot Analysis Total . | . . . Derelict Logs Recovered . | . . . Drone Launches . | . . . Drone Recoveries . | . . . Exploration | -11 -10 -10 ------------- Run | Yrd Mat Sub Turns Passed 1266 | 153 243 870 Spaces Moved 773 | 76 141 556 Core 14 | 14 . . Treads 446 | 62 101 283 Legs . | . . . Wheels 313 | . 40 273 Hover . | . . . Flight . | . . . Fastest Speed 50 | 50 105 105 Average Speed 136 | 139 144 133 Slowest Speed 240 | 160 160 240 Overloaded Moves . | . . . Propulsion Burnouts . | . . . Robots Hopped . | . . . Potential Cave-ins . | . . . Cave-ins Triggered . | . . . Exploration Rate (%) 22 | 5 22 41 Regions Visited 2 Branch Regions 1 Pre-discovered Areas 1 | . . 1 Known Exits Taken . | . . . Unknown Exits Taken 2 | 1 1 . Scrap Searched 1 | . . 1 Spaces Dug . | . . . Terrain Destroyed . | . . . Melee . | . . . Projectile . | . . . AOE . | . . . Terrain Rammed . | . . . Walls Destroyed . | . . . Machines Disabled . | . . . Actions | -11 -10 -10 --------- Run | Yrd Mat Sub Total 905 | 105 168 632 Wait 14 | 3 2 9 Move 771 | 75 140 556 Hop . | . . . Pick Up 35 | 11 14 10 Fast Attach 2 | . . 2 Attach 16 | 7 . 9 Detach . | . . . Swap 7 | . 3 4 Drop 10 | . 3 7 Fire 50 | 9 6 35 Melee . | . . . Ram . | . . . Kick . | . . . Crush . | . . . Escape Stasis . | . . . Rewire . | . . . Trap . | . . . Miscellaneous . | . . . Route ------- -11/Scrapyard -10/Materials (discovered 2 exits: [*Mat] / [*Sub]) -10/Subcaves History --------- Turn | Location | Event 8 | -11/Scrapyard | Discovered new exit (range 15) 154 | -11/Scrapyard | Entered Materials 279 | -10/Materials | Discovered new exit (range 16) 311 | -10/Materials | Build established: Mutant 388 | -10/Materials | Discovered new exit (range 10) 397 | -10/Materials | Entered Subcaves 547 | -10/Subcaves | Learned location of Zion (-7) 547 | -10/Subcaves | Met a Zionite searching for "candidates" 574 | -10/Subcaves | Shifting Twisted Machinery released Sub. Shrapnel Launcher 690 | -10/Subcaves | A Subdweller sparked back to life 690 | -10/Subcaves | A Subdweller sparked back to life 690 | -10/Subcaves | A Subdweller sparked back to life 721 | -10/Subcaves | Core integrity fell below 50% 735 | -10/Subcaves | Core integrity fell below 20% 760 | -10/Subcaves | Lost 8 parts (2p2n1u3w) 764 | -10/Subcaves | Found Prototype Flight Unit 1151 | -10/Subcaves | Shifting Twisted Machinery released Mak. Flight Unit 1165 | -10/Subcaves | Shifting Twisted Machinery released Sub. Beam Cannon 1267 | -10/Subcaves | Destroyed by CM-64X(R) with Subdweller Laser Last Messages --------------- 00809_ Acquired Sub. Power Source. 00810_ Subatomizers dissect the Sub. Optics. 00822_ Subatomizers dissect the Corrupted Sub. Laser. 00822_ Dropped Arm. Wheel. 00823_ Dropped Beam Rifle. 00823_ Acquired Sub. Laser. 00844_ B6-UKF(O) puts together Sub. Optics. 00856_ Dropped Beam Rifle. 00856_ Acquired Barrage Gun. 00878_ Subatomizers dissect the Beam Rifle. Mak. Flight Unit falls loose from the Twisted Machinery. Sub. Beam Cannon falls loose from the Twisted Machinery. 01165_ Dropped EM Pulse Gun. 01166_ Acquired Mak. Flight Unit. 01179_ Acquired Sub. Beam Cannon. 01261_ Lgt. Treads destroyed. 01264_ Sub. Power Source destroyed. Map ----- +----------------------------------------------------+ | ?????????????????????????????????????????????????? | | ?????????????????????????????????????????????????? | | ?????????????????????????????????????????????????? | | ?????????????????????????????????????????????????? | | ?????????????????????????????????????????????????? | | ?????????????????????????????????????????????????? | | ?????????????????????????????????????????????????? | | ?????????????????????????????????????????????????? | | ?????????????????????????????????????????????????? | | ???????????????????????????????????????????###???? | | ????????#?????????????#######?????????????## ##??? | | ????????# ??????????# #?????????????# ##?? | | ????????# ?????????# ##????????????# ##? | | ???????## ##???#### """##????????????# ## | | ??????## ###" ## ""######??####?# # | | ???? """ #?# """ #### ### | | ???? " "### "" ## ## | | ????# ######" #[ ""#??# | | ??????? ?????????????##"" #### "#??# | | ??????? ???????????###### #?# #??# | | ???????# ????#????????###?# ##??# ## | | ??????## ### ?????## #?# #??## ### | | ??????# ?#### #?# #### #?# | | ??????? # ; #### #?? | | ??????????? R## ####?? | | ?????????????????????# @ R #####????? | | ??????????? #;;## #????????? | | ???????????## #?##### #????????? | | ????????????# ###### ##??????## ##????????? | | ????????????????????#??????????## ###?????????? | | ????????????????????????????????######???????????? | | ???????????????????????????????????????????????? ? | | ????????????????????????????????????????????????? | | ?????????????????????????????????????????????????? | | ?????????????????????????????????????????????????? | | ?????????????????????????????????????????????????? | | ?????????????????????????????????????????????????# | | ????????????????????????????????????????????????## | | ????????????????????????????????????????????????# | | ?????????????????????????????????????????????????? | | ?????????????????????????????????????????????????? | | ?????????????????????????????????????????????????? | | ?????????????????????????????????????????????????? | | ?????????????????????????????????????????????????? | | ?????????????????????????????????????????????????? | | ?????????????????????????????????????????????????? | | ?????????????????????????????????????????????????? | | ?????????????????????????????????????????????????? | | ?????????????????????????????????????????????????? | | ?????????????????????????????????????????????????? | +----------------------------------------------------+ Best States ------------- Heat Dissipation 25 Energy Generation 15 Energy Capacity 250 Matter Stores 300 Matter Capacity 300 Sight Range 21 Terrain Scan Density 10 Evasion (%) 50 Recoil Reduction 2 Item Schematics ----------------- None Robot Schematics ------------------ None Fabricated ------------ Nothing Repaired ---------- Nothing Alien Tech Used ----------------- None Achievements -------------- None Challenges ------------ None Game ------ Seed SiegeGammaCutter Manual? 0 Play Time 00:10:24 Cumulative 236.8 hours Start 2025.08.31 @ 11:59:42 End 2025.08.31 @ 12:05:50 Sessions 1 Manual Loads 0 Difficulty Rogue Special Mode None Game No. 353 Rogue 353 Adventurer 0 Explorer 0 Win Type - Total 4 Types 3/0/1/0/0/0/0/0/0/0 Lore% 81 Gallery% 76 Achievement% 58 Wizard Run 0 Options --------- Layout 1 ASCII 0 Keyboard 0 Movement Mouse Keybinds 0 Fullscreen 1 Font 32/SmallcapsGlow Map View 50x35 Zoom Use 0% Tactical HUD 1 Map Filters NONE Filters NONE Steam 1 RUN: 917eb443-d2e2-4a34-b3af-855f3192024d